[Event "Titled Tuesday Blitz March 01 Early 2022"]
[White "Gelman, Alexander"]
[Black "Rozhkov, Viacheslav"]
[WhiteFideId "4118316"]
[BlackFideId "4181484"]
[WhiteElo "2375"]
[BlackElo "2324"]
[Result "1-0"]
[Round "08"]
[TimeControl "180+1"]
[Date "2022.03.01"]
[WhiteClock "0:00:10"]
[BlackClock "0:00:06"]

1. d4 {[%clk 0:03:00]}  d5 {[%clk 0:02:59]} 2. Nc3 {[%clk 0:03:00]}  Nf6 {[%clk 0:02:58]} 3. Bf4 {[%clk 0:03:00]}  e6 {[%clk 0:02:58]} 4. Nb5 {[%clk 0:03:00]}  Bd6 {[%clk 0:02:54]} 5. Nxd6+ {[%clk 0:03:00]}  cxd6 {[%clk 0:02:54]} 6. e3 {[%clk 0:03:00]}  O-O {[%clk 0:02:53]} 7. Nf3 {[%clk 0:02:56]}  Qb6 {[%clk 0:02:47]} 8. Rb1 {[%clk 0:02:53]}  Ne4 {[%clk 0:02:28]} 9. Bd3 {[%clk 0:02:48]}  f5 {[%clk 0:02:27]} 10. O-O {[%clk 0:02:47]}  Bd7 {[%clk 0:02:27]} 11. c4 {[%clk 0:02:38]}  dxc4 {[%clk 0:02:26]} 12. Bxc4 {[%clk 0:02:38]}  d5 {[%clk 0:02:21]} 13. Bd3 {[%clk 0:02:33]}  Nc6 {[%clk 0:02:20]} 14. Bxe4 {[%clk 0:01:53]}  fxe4 {[%clk 0:02:19]} 15. Ne5 {[%clk 0:01:53]}  Nxe5 {[%clk 0:02:15]} 16. Bxe5 {[%clk 0:01:54]}  Bb5 {[%clk 0:01:57]} 17. Qg4 {[%clk 0:01:53]}  Rf7 {[%clk 0:01:57]} 18. Rfc1 {[%clk 0:01:52]}  Raf8 {[%clk 0:01:57]} 19. b3 {[%clk 0:01:37]}  Bd3 {[%clk 0:01:40]} 20. Rb2 {[%clk 0:01:30]}  a5 {[%clk 0:01:12]} 21. h4 {[%clk 0:01:18]}  a4 {[%clk 0:01:06]} 22. Rd2 {[%clk 0:00:36]}  axb3 {[%clk 0:01:01]} 23. axb3 {[%clk 0:00:37]}  Qa5 {[%clk 0:00:53]} 24. Rb2 {[%clk 0:00:28]}  Qa3 {[%clk 0:00:36]} 25. Rbc2 {[%clk 0:00:21]}  Bxc2 {[%clk 0:00:34]} 26. Rxc2 {[%clk 0:00:22]}  Qxb3 {[%clk 0:00:23]} 27. Rc5 {[%clk 0:00:21]}  h5 {[%clk 0:00:14]} 28. Qxe6 {[%clk 0:00:20]}  Qd1+ {[%clk 0:00:13]} 29. Kh2 {[%clk 0:00:19]}  Qg4 {[%clk 0:00:13]} 30. Qxg4 {[%clk 0:00:12]}  hxg4 {[%clk 0:00:14]} 31. Bg3 {[%clk 0:00:10]}  Rd7 {[%clk 0:00:12]} 32. Rb5 {[%clk 0:00:10]}  Kf7 {[%clk 0:00:10]} 33. Be5 {[%clk 0:00:10]}  Rh8 {[%clk 0:00:08]} 34. Kg3 {[%clk 0:00:10]}  Rh6 {[%clk 0:00:08]} 35. Kxg4 {[%clk 0:00:10]}  Rg6+ {[%clk 0:00:09]} 36. Kh3 {[%clk 0:00:10]}  Rc6 {[%clk 0:00:08]} 37. g4 {[%clk 0:00:10]}  Rc2 {[%clk 0:00:08]} 38. Kg3 {[%clk 0:00:10]}  Ke6 {[%clk 0:00:08]} 39. h5 {[%clk 0:00:10]}  Rc6 {[%clk 0:00:07]} 40. g5 {[%clk 0:00:10]}  Rf7 {[%clk 0:00:07]} 41. g6 {[%clk 0:00:10]}  Rd7 {[%clk 0:00:06]} 42. Kg4 {[%clk 0:00:10]} 1-0


[Site "https://www.chess.com"]

[Event "Titled Tuesday Blitz March 01 Early 2022"]
[White "Godzwon, Iwo"]
[Black "Dauner, Benedikt"]
[WhiteFideId "21802483"]
[BlackFideId "16225899"]
[WhiteElo "2201"]
[BlackElo "2230"]
[Result "1-0"]
[Round "08"]
[TimeControl "180+1"]
[Date "2022.03.01"]
[WhiteClock "0:00:14"]
[BlackClock "0:00:03"]

1. e4 {[%clk 0:03:00]}  g6 {[%clk 0:03:00]} 2. d4 {[%clk 0:02:59]}  Bg7 {[%clk 0:03:00]} 3. Nc3 {[%clk 0:03:00]}  c5 {[%clk 0:03:01]} 4. Nf3 {[%clk 0:02:52]}  cxd4 {[%clk 0:03:00]} 5. Nxd4 {[%clk 0:02:53]}  Nc6 {[%clk 0:03:00]} 6. Be3 {[%clk 0:02:53]}  Nf6 {[%clk 0:03:00]} 7. Bc4 {[%clk 0:02:53]}  O-O {[%clk 0:03:00]} 8. Bb3 {[%clk 0:02:53]}  Re8 {[%clk 0:03:01]} 9. f3 {[%clk 0:02:39]}  e6 {[%clk 0:03:00]} 10. f4 {[%clk 0:02:37]}  d6 {[%clk 0:02:58]} 11. Qd2 {[%clk 0:02:34]}  Ng4 {[%clk 0:01:58]} 12. Bg1 {[%clk 0:02:31]}  e5 {[%clk 0:01:58]} 13. Nxc6 {[%clk 0:02:02]}  bxc6 {[%clk 0:01:59]} 14. O-O-O {[%clk 0:02:01]}  exf4 {[%clk 0:01:55]} 15. h3 {[%clk 0:02:02]}  Ne3 {[%clk 0:01:52]} 16. Bxe3 {[%clk 0:02:00]}  fxe3 {[%clk 0:01:53]} 17. Qxe3 {[%clk 0:02:00]}  Qh4 {[%clk 0:01:47]} 18. Kb1 {[%clk 0:01:57]}  Be6 {[%clk 0:01:45]} 19. Rxd6 {[%clk 0:01:51]}  Bxb3 {[%clk 0:01:30]} 20. axb3 {[%clk 0:01:51]}  Bxc3 {[%clk 0:01:06]} 21. Qxc3 {[%clk 0:01:51]}  Qxe4 {[%clk 0:01:06]} 22. Qxc6 {[%clk 0:01:50]}  Qe2 {[%clk 0:01:05]} 23. Qd5 {[%clk 0:01:41]}  Rac8 {[%clk 0:01:03]} 24. Qd2 {[%clk 0:01:37]}  Qe5 {[%clk 0:01:02]} 25. Rd1 {[%clk 0:01:33]}  h5 {[%clk 0:00:56]} 26. Rd7 {[%clk 0:01:26]}  Re6 {[%clk 0:00:50]} 27. Rxa7 {[%clk 0:01:16]}  Rec6 {[%clk 0:00:47]} 28. c3 {[%clk 0:01:07]}  Qe6 {[%clk 0:00:44]} 29. b4 {[%clk 0:01:01]}  Qb3 {[%clk 0:00:42]} 30. Ra3 {[%clk 0:00:57]}  Qe6 {[%clk 0:00:40]} 31. Qd5 {[%clk 0:00:42]}  Qe2 {[%clk 0:00:37]} 32. Ra7 {[%clk 0:00:41]}  Re6 {[%clk 0:00:30]} 33. Qf3 {[%clk 0:00:31]}  Qxf3 {[%clk 0:00:17]} 34. gxf3 {[%clk 0:00:29]}  Re3 {[%clk 0:00:18]} 35. b5 {[%clk 0:00:29]}  Rxf3 {[%clk 0:00:18]} 36. b6 {[%clk 0:00:29]}  Rf6 {[%clk 0:00:12]} 37. b7 {[%clk 0:00:28]}  Rf8 {[%clk 0:00:11]} 38. Ra8 {[%clk 0:00:28]}  Rb6 {[%clk 0:00:11]} 39. Rxf8+ {[%clk 0:00:28]}  Kxf8 {[%clk 0:00:12]} 40. Rd8+ {[%clk 0:00:28]}  Kg7 {[%clk 0:00:12]} 41. b8=Q {[%clk 0:00:28]}  Re6 {[%clk 0:00:13]} 42. Rg8+ {[%clk 0:00:25]}  Kh7 {[%clk 0:00:13]} 43. Rh8+ {[%clk 0:00:24]}  Kg7 {[%clk 0:00:13]} 44. Qf8+ {[%clk 0:00:24]}  Kf6 {[%clk 0:00:14]} 45. Rh7 {[%clk 0:00:23]}  Kg5 {[%clk 0:00:13]} 46. Rxf7 {[%clk 0:00:23]}  Re1+ {[%clk 0:00:13]} 47. Ka2 {[%clk 0:00:22]}  Kh4 {[%clk 0:00:13]} 48. Rf3 {[%clk 0:00:21]}  g5 {[%clk 0:00:11]} 49. Qb4+ {[%clk 0:00:18]}  g4 {[%clk 0:00:10]} 50. hxg4 {[%clk 0:00:18]}  hxg4 {[%clk 0:00:11]} 51. Rf4 {[%clk 0:00:18]}  Rg1 {[%clk 0:00:11]} 52. Qd4 {[%clk 0:00:17]}  Rg2 {[%clk 0:00:10]} 53. c4 {[%clk 0:00:18]}  Kh3 {[%clk 0:00:10]} 54. c5 {[%clk 0:00:18]}  Rg3 {[%clk 0:00:09]} 55. c6 {[%clk 0:00:18]}  Rg2 {[%clk 0:00:09]} 56. c7 {[%clk 0:00:18]}  Re2 {[%clk 0:00:04]} 57. c8=Q {[%clk 0:00:14]}  Kg3 {[%clk 0:00:04]} 58. Qxg4+ {[%clk 0:00:13]}  Kh2 {[%clk 0:00:04]} 59. Qh4+ {[%clk 0:00:13]}  Kg2 {[%clk 0:00:04]} 60. Rf2+ {[%clk 0:00:13]}  Kg1 {[%clk 0:00:04]} 61. Rxe2+ {[%clk 0:00:14]}  Kf1 {[%clk 0:00:03]} 62. Qd1# {[%clk 0:00:14]} 1-0


[Site "https://www.chess.com"]

[Event "Titled Tuesday Blitz March 01 Early 2022"]
[White "Goltsev, Dmitry"]
[Black "Aldokhin, Ivan"]
[WhiteFideId "24176710"]
[BlackFideId "24115720"]
[WhiteElo "2273"]
[BlackElo "2231"]
[Result "0-1"]
[Round "08"]
[TimeControl "180+1"]
[Date "2022.03.01"]
[WhiteClock "0:00:01"]
[BlackClock "0:00:08"]

1. e4 {[%clk 0:02:34]}  c5 {[%clk 0:03:00]} 2. Nf3 {[%clk 0:02:34]}  e6 {[%clk 0:03:00]} 3. d4 {[%clk 0:02:32]}  cxd4 {[%clk 0:03:01]} 4. Nxd4 {[%clk 0:02:33]}  a6 {[%clk 0:03:01]} 5. Nc3 {[%clk 0:02:34]}  Qc7 {[%clk 0:03:02]} 6. Be2 {[%clk 0:02:34]}  Nf6 {[%clk 0:03:02]} 7. O-O {[%clk 0:02:35]}  d6 {[%clk 0:03:03]} 8. Be3 {[%clk 0:02:35]}  b5 {[%clk 0:03:01]} 9. a3 {[%clk 0:02:35]}  Bb7 {[%clk 0:03:01]} 10. f3 {[%clk 0:02:35]}  Be7 {[%clk 0:02:59]} 11. Qd2 {[%clk 0:02:35]}  O-O {[%clk 0:02:52]} 12. Rad1 {[%clk 0:02:32]}  Nbd7 {[%clk 0:02:48]} 13. Bxb5 {[%clk 0:02:30]}  axb5 {[%clk 0:02:39]} 14. Ndxb5 {[%clk 0:02:31]}  Qb8 {[%clk 0:02:33]} 15. Nxd6 {[%clk 0:02:29]}  Ba6 {[%clk 0:02:30]} 16. Rfe1 {[%clk 0:02:24]}  Qxb2 {[%clk 0:02:03]} 17. Ra1 {[%clk 0:02:12]}  Qb8 {[%clk 0:01:43]} 18. Bf4 {[%clk 0:02:02]}  e5 {[%clk 0:01:40]} 19. Nf5 {[%clk 0:02:01]}  Bc5+ {[%clk 0:01:31]} 20. Be3 {[%clk 0:02:01]}  Qa7 {[%clk 0:01:30]} 21. Kh1 {[%clk 0:01:57]}  Bxe3 {[%clk 0:01:24]} 22. Nxe3 {[%clk 0:01:56]}  Nb6 {[%clk 0:01:21]} 23. Nf5 {[%clk 0:01:52]}  Bc8 {[%clk 0:01:10]} 24. Nb5 {[%clk 0:01:44]}  Qa5 {[%clk 0:00:56]} 25. Qxa5 {[%clk 0:01:29]}  Rxa5 {[%clk 0:00:55]} 26. Ne7+ {[%clk 0:01:30]}  Kh8 {[%clk 0:00:55]} 27. Nd6 {[%clk 0:01:31]}  Be6 {[%clk 0:00:49]} 28. Red1 {[%clk 0:01:23]}  Nc4 {[%clk 0:00:47]} 29. a4 {[%clk 0:01:01]}  h6 {[%clk 0:00:37]} 30. Nb5 {[%clk 0:00:56]}  Rfa8 {[%clk 0:00:31]} 31. Nc7 {[%clk 0:00:44]}  R8a7 {[%clk 0:00:31]} 32. Nc6 {[%clk 0:00:44]}  Rxc7 {[%clk 0:00:30]} 33. Nxa5 {[%clk 0:00:44]}  Nxa5 {[%clk 0:00:31]} 34. Rd8+ {[%clk 0:00:44]}  Kh7 {[%clk 0:00:31]} 35. Ra8 {[%clk 0:00:44]}  Rc5 {[%clk 0:00:23]} 36. g4 {[%clk 0:00:38]}  h5 {[%clk 0:00:21]} 37. g5 {[%clk 0:00:34]}  Nd7 {[%clk 0:00:22]} 38. Rb1 {[%clk 0:00:31]}  h4 {[%clk 0:00:21]} 39. Kg2 {[%clk 0:00:31]}  h3+ {[%clk 0:00:21]} 40. Kg3 {[%clk 0:00:31]}  Nc6 {[%clk 0:00:20]} 41. Rc8 {[%clk 0:00:28]}  Nb6 {[%clk 0:00:14]} 42. Rc7 {[%clk 0:00:20]}  Nxa4 {[%clk 0:00:14]} 43. Ra1 {[%clk 0:00:14]}  Nc3 {[%clk 0:00:12]} 44. Ra6 {[%clk 0:00:13]}  Ne2+ {[%clk 0:00:11]} 45. Kh4 {[%clk 0:00:11]}  Ned4 {[%clk 0:00:12]} 46. Ra8 {[%clk 0:00:09]}  Kg6 {[%clk 0:00:11]} 47. Rh8 {[%clk 0:00:08]}  Rxc2 {[%clk 0:00:11]} 48. Rb7 {[%clk 0:00:08]}  Rg2 {[%clk 0:00:10]} 49. Rb3 {[%clk 0:00:02]}  Bxb3 {[%clk 0:00:08]} 50. Kxh3 {[%clk 0:00:03]}  Rg1 {[%clk 0:00:07]} 51. Rc8 {[%clk 0:00:01]}  Be6+ {[%clk 0:00:07]} 52. Kh4 {[%clk 0:00:01]}  Nxf3# {[%clk 0:00:08]} 0-1


[Site "https://www.chess.com"]

[Event "Titled Tuesday Blitz March 01 Early 2022"]
[White "Goltseva, Ekaterina"]
[Black "Kalajzic, Ivan"]
[WhiteFideId "24173770"]
[BlackFideId "14506378"]
[WhiteElo "2140"]
[BlackElo "2163"]
[Result "1-0"]
[Round "08"]
[TimeControl "180+1"]
[Date "2022.03.01"]
[WhiteClock "0:00:19"]
[BlackClock "0:00:51"]

1. d4 {[%clk 0:03:00]}  Nc6 {[%clk 0:02:58]} 2. c4 {[%clk 0:03:00]}  e5 {[%clk 0:02:51]} 3. d5 {[%clk 0:02:58]}  Nce7 {[%clk 0:02:42]} 4. Nc3 {[%clk 0:02:53]}  Nf6 {[%clk 0:02:41]} 5. Nf3 {[%clk 0:02:51]}  Ng6 {[%clk 0:02:35]} 6. e3 {[%clk 0:02:50]}  Bb4 {[%clk 0:02:33]} 7. Bd2 {[%clk 0:02:48]}  O-O {[%clk 0:02:33]} 8. Qc2 {[%clk 0:02:48]}  d6 {[%clk 0:02:33]} 9. h3 {[%clk 0:02:43]}  Bd7 {[%clk 0:02:25]} 10. Be2 {[%clk 0:02:42]}  Qe7 {[%clk 0:02:23]} 11. g4 {[%clk 0:02:41]}  h6 {[%clk 0:02:22]} 12. a3 {[%clk 0:02:20]}  Bxc3 {[%clk 0:02:20]} 13. Bxc3 {[%clk 0:02:21]}  a6 {[%clk 0:02:20]} 14. Rg1 {[%clk 0:02:01]}  Nh7 {[%clk 0:02:16]} 15. Bd3 {[%clk 0:01:58]}  b5 {[%clk 0:02:07]} 16. Bxg6 {[%clk 0:01:55]}  fxg6 {[%clk 0:02:07]} 17. Nd2 {[%clk 0:01:53]}  Qf7 {[%clk 0:02:01]} 18. Rf1 {[%clk 0:01:37]}  bxc4 {[%clk 0:02:01]} 19. O-O-O {[%clk 0:01:30]}  g5 {[%clk 0:01:51]} 20. Nxc4 {[%clk 0:01:23]}  Bb5 {[%clk 0:01:51]} 21. Ba5 {[%clk 0:01:17]}  c5 {[%clk 0:01:39]} 22. Nxd6 {[%clk 0:01:13]}  Qd7 {[%clk 0:01:37]} 23. Nxb5 {[%clk 0:01:09]}  axb5 {[%clk 0:01:36]} 24. Bc3 {[%clk 0:00:46]}  b4 {[%clk 0:01:35]} 25. Bxe5 {[%clk 0:00:41]}  bxa3 {[%clk 0:01:33]} 26. bxa3 {[%clk 0:00:41]}  Rxa3 {[%clk 0:01:32]} 27. Bb2 {[%clk 0:00:40]}  Ra2 {[%clk 0:01:29]} 28. Qb3 {[%clk 0:00:37]}  Rfa8 {[%clk 0:01:21]} 29. d6+ {[%clk 0:00:36]}  Kh8 {[%clk 0:01:17]} 30. f4 {[%clk 0:00:35]}  c4 {[%clk 0:01:10]} 31. Qc3 {[%clk 0:00:31]}  Rb8 {[%clk 0:01:05]} 32. Rd2 {[%clk 0:00:21]}  Nf6 {[%clk 0:01:04]} 33. fxg5 {[%clk 0:00:20]}  Ne4 {[%clk 0:01:04]} 34. Qxg7+ {[%clk 0:00:19]}  Qxg7 {[%clk 0:01:03]} 35. Bxg7+ {[%clk 0:00:20]}  Kxg7 {[%clk 0:01:03]} 36. Rxa2 {[%clk 0:00:20]}  Nxd6 {[%clk 0:00:52]} 37. gxh6+ {[%clk 0:00:19]}  Kxh6 {[%clk 0:00:51]} 38. Ra6 {[%clk 0:00:19]} 1-0


[Site "https://www.chess.com"]

[Event "Titled Tuesday Blitz March 01 Early 2022"]
[White "Gracia Alvarez, Gerardo Antonio"]
[Black "Kanyamarala, Trisha"]
[WhiteFideId "5109124"]
[BlackFideId "45004722"]
[WhiteElo "2139"]
[BlackElo "2002"]
[Result "0-1"]
[Round "08"]
[TimeControl "180+1"]
[Date "2022.03.01"]
[WhiteClock "0:00:12"]
[BlackClock "0:00:15"]

1. c4 {[%clk 0:03:00]}  e6 {[%clk 0:02:58]} 2. Nf3 {[%clk 0:02:59]}  d5 {[%clk 0:02:58]} 3. e3 {[%clk 0:03:00]}  Nf6 {[%clk 0:02:58]} 4. b3 {[%clk 0:02:59]}  c6 {[%clk 0:02:58]} 5. Bb2 {[%clk 0:02:59]}  Bd6 {[%clk 0:02:58]} 6. Qc2 {[%clk 0:02:58]}  O-O {[%clk 0:02:58]} 7. Nc3 {[%clk 0:02:57]}  Nbd7 {[%clk 0:02:58]} 8. Rg1 {[%clk 0:02:57]}  a6 {[%clk 0:02:56]} 9. g4 {[%clk 0:02:55]}  Nc5 {[%clk 0:02:49]} 10. g5 {[%clk 0:02:50]}  Nfe4 {[%clk 0:02:46]} 11. Ne2 {[%clk 0:02:46]}  dxc4 {[%clk 0:02:38]} 12. bxc4 {[%clk 0:02:45]}  Bxh2 {[%clk 0:02:29]} 13. d4 {[%clk 0:02:37]}  Bxg1 {[%clk 0:02:26]} 14. Nexg1 {[%clk 0:02:38]}  Qa5+ {[%clk 0:02:22]} 15. Ke2 {[%clk 0:02:34]}  Na4 {[%clk 0:02:14]} 16. Qxe4 {[%clk 0:02:07]}  Nxb2 {[%clk 0:02:13]} 17. Qc2 {[%clk 0:02:03]}  Na4 {[%clk 0:01:57]} 18. Rc1 {[%clk 0:02:03]}  c5 {[%clk 0:01:52]} 19. Ne5 {[%clk 0:01:55]}  Nb6 {[%clk 0:01:39]} 20. Ngf3 {[%clk 0:01:53]}  Nd7 {[%clk 0:01:37]} 21. Bg2 {[%clk 0:01:49]}  cxd4 {[%clk 0:01:35]} 22. exd4 {[%clk 0:01:35]}  Nxe5 {[%clk 0:01:35]} 23. Nxe5 {[%clk 0:01:34]}  Qd8 {[%clk 0:01:35]} 24. Rh1 {[%clk 0:01:32]}  g6 {[%clk 0:01:34]} 25. Qd2 {[%clk 0:01:18]}  f6 {[%clk 0:01:21]} 26. gxf6 {[%clk 0:01:12]}  Qxf6 {[%clk 0:01:21]} 27. Ng4 {[%clk 0:01:06]}  Qf4 {[%clk 0:01:15]} 28. Nh6+ {[%clk 0:00:56]}  Kg7 {[%clk 0:01:13]} 29. Qxf4 {[%clk 0:00:56]}  Rxf4 {[%clk 0:01:13]} 30. Ke3 {[%clk 0:00:57]}  Rf8 {[%clk 0:01:08]} 31. Ng4 {[%clk 0:00:57]}  Rb8 {[%clk 0:01:06]} 32. c5 {[%clk 0:00:55]}  Bd7 {[%clk 0:01:02]} 33. Ne5 {[%clk 0:00:53]}  Bb5 {[%clk 0:00:57]} 34. Ra1 {[%clk 0:00:50]}  h5 {[%clk 0:00:50]} 35. a4 {[%clk 0:00:51]}  Be8 {[%clk 0:00:50]} 36. a5 {[%clk 0:00:46]}  Bc6 {[%clk 0:00:44]} 37. Nxc6 {[%clk 0:00:37]}  bxc6 {[%clk 0:00:45]} 38. Bxc6 {[%clk 0:00:38]}  Rb3+ {[%clk 0:00:44]} 39. Ke4 {[%clk 0:00:38]}  Rxf2 {[%clk 0:00:44]} 40. Ke5 {[%clk 0:00:35]}  Rd3 {[%clk 0:00:38]} 41. Ra4 {[%clk 0:00:32]}  Rfd2 {[%clk 0:00:25]} 42. Bb7 {[%clk 0:00:29]}  h4 {[%clk 0:00:20]} 43. c6 {[%clk 0:00:27]}  Rc3 {[%clk 0:00:17]} 44. Kd6 {[%clk 0:00:26]}  h3 {[%clk 0:00:16]} 45. c7 {[%clk 0:00:24]}  Rdc2 {[%clk 0:00:17]} 46. Bxa6 {[%clk 0:00:13]}  Rxc7 {[%clk 0:00:15]} 47. Bf1 {[%clk 0:00:12]}  h2 {[%clk 0:00:15]} 0-1


[Site "https://www.chess.com"]

[Event "Titled Tuesday Blitz March 01 Early 2022"]
[White "Gubanov, Oleg"]
[Black "Silva, Mariana Sofia T."]
[WhiteFideId "14115115"]
[BlackFideId "1911899"]
[WhiteElo "2080"]
[BlackElo "1825"]
[Result "1/2-1/2"]
[Round "08"]
[TimeControl "180+1"]
[Date "2022.03.01"]
[WhiteClock "0:00:14"]
[BlackClock "0:00:10"]

1. e4 {[%clk 0:02:59]}  c6 {[%clk 0:02:56]} 2. d4 {[%clk 0:02:58]}  d5 {[%clk 0:02:55]} 3. e5 {[%clk 0:02:58]}  c5 {[%clk 0:02:55]} 4. dxc5 {[%clk 0:02:54]}  e6 {[%clk 0:02:54]} 5. c4 {[%clk 0:02:54]}  Nc6 {[%clk 0:02:33]} 6. cxd5 {[%clk 0:02:50]}  exd5 {[%clk 0:02:33]} 7. Nf3 {[%clk 0:02:40]}  Bg4 {[%clk 0:02:28]} 8. Be2 {[%clk 0:02:34]}  Bxc5 {[%clk 0:02:25]} 9. O-O {[%clk 0:02:33]}  Nge7 {[%clk 0:02:22]} 10. Nc3 {[%clk 0:02:26]}  O-O {[%clk 0:02:16]} 11. Bf4 {[%clk 0:02:24]}  Ng6 {[%clk 0:02:14]} 12. Bg3 {[%clk 0:02:16]}  d4 {[%clk 0:02:08]} 13. Ne4 {[%clk 0:02:16]}  Bb6 {[%clk 0:02:02]} 14. Nd6 {[%clk 0:01:55]}  Qe7 {[%clk 0:01:42]} 15. Nc4 {[%clk 0:01:51]}  Bc7 {[%clk 0:01:38]} 16. h3 {[%clk 0:01:46]}  Bxf3 {[%clk 0:01:37]} 17. Bxf3 {[%clk 0:01:47]}  Rab8 {[%clk 0:01:25]} 18. Bxc6 {[%clk 0:01:42]}  bxc6 {[%clk 0:01:25]} 19. Qxd4 {[%clk 0:01:42]}  Rfd8 {[%clk 0:01:15]} 20. Qc3 {[%clk 0:01:31]}  Rd5 {[%clk 0:01:09]} 21. Rfe1 {[%clk 0:01:28]}  Rbd8 {[%clk 0:01:07]} 22. Kh2 {[%clk 0:01:00]}  Rd3 {[%clk 0:01:00]} 23. Qc2 {[%clk 0:01:00]}  Qc5 {[%clk 0:00:43]} 24. b3 {[%clk 0:00:56]}  Ne7 {[%clk 0:00:39]} 25. Rad1 {[%clk 0:00:48]}  R3d5 {[%clk 0:00:37]} 26. Rc1 {[%clk 0:00:28]}  g6 {[%clk 0:00:27]} 27. f4 {[%clk 0:00:26]}  Nf5 {[%clk 0:00:27]} 28. Bf2 {[%clk 0:00:26]}  Qd4 {[%clk 0:00:26]} 29. Bxd4 {[%clk 0:00:25]}  Nxd4 {[%clk 0:00:25]} 30. Qf2 {[%clk 0:00:25]}  c5 {[%clk 0:00:22]} 31. Ne3 {[%clk 0:00:24]}  R5d7 {[%clk 0:00:22]} 32. Rxc5 {[%clk 0:00:24]}  Bb6 {[%clk 0:00:22]} 33. Rcc1 {[%clk 0:00:22]}  Nf5 {[%clk 0:00:21]} 34. Qf3 {[%clk 0:00:22]}  Rd2 {[%clk 0:00:21]} 35. Nf1 {[%clk 0:00:21]}  Rxa2 {[%clk 0:00:21]} 36. Ng3 {[%clk 0:00:21]}  Nd4 {[%clk 0:00:20]} 37. Qd3 {[%clk 0:00:20]}  Ra3 {[%clk 0:00:16]} 38. Ne4 {[%clk 0:00:20]}  Rxb3 {[%clk 0:00:17]} 39. Nf6+ {[%clk 0:00:19]}  Kg7 {[%clk 0:00:16]} 40. Qc4 {[%clk 0:00:20]}  Rb2 {[%clk 0:00:16]} 41. Rcd1 {[%clk 0:00:19]}  Nf3+ {[%clk 0:00:17]} 42. Kg3 {[%clk 0:00:19]}  Rxd1 {[%clk 0:00:16]} 43. Rxd1 {[%clk 0:00:19]}  Ra2 {[%clk 0:00:12]} 44. Kxf3 {[%clk 0:00:17]}  Ra3+ {[%clk 0:00:11]} 45. Ke2 {[%clk 0:00:16]}  h5 {[%clk 0:00:12]} 46. Rd3 {[%clk 0:00:15]}  Ra1 {[%clk 0:00:12]} 47. Rd1 {[%clk 0:00:14]}  Ra3 {[%clk 0:00:11]} 48. Rd2 {[%clk 0:00:14]}  Ra1 {[%clk 0:00:11]} 49. Rd1 {[%clk 0:00:14]}  Ra3 {[%clk 0:00:10]} 1/2-1/2


[Site "https://www.chess.com"]

[Event "Titled Tuesday Blitz March 01 Early 2022"]
[White "Gunina, Valentina"]
[Black "Tari, Aryan"]
[WhiteFideId "4167570"]
[BlackFideId "1510045"]
[WhiteElo "2710"]
[BlackElo "2907"]
[Result "0-1"]
[Round "08"]
[TimeControl "180+1"]
[Date "2022.03.01"]
[WhiteClock "0:00:01"]
[BlackClock "0:00:11"]

1. d4 {[%clk 0:03:00]}  d5 {[%clk 0:02:59]} 2. c4 {[%clk 0:03:00]}  e6 {[%clk 0:02:59]} 3. Nf3 {[%clk 0:03:00]}  Nf6 {[%clk 0:02:59]} 4. Nc3 {[%clk 0:03:01]}  c5 {[%clk 0:02:44]} 5. cxd5 {[%clk 0:03:00]}  exd5 {[%clk 0:02:45]} 6. Bg5 {[%clk 0:02:57]}  Be6 {[%clk 0:02:45]} 7. e3 {[%clk 0:02:55]}  c4 {[%clk 0:02:44]} 8. Be2 {[%clk 0:02:55]}  Bb4 {[%clk 0:02:28]} 9. O-O {[%clk 0:02:54]}  O-O {[%clk 0:02:28]} 10. e4 {[%clk 0:02:42]}  Be7 {[%clk 0:01:48]} 11. Bxf6 {[%clk 0:02:15]}  Bxf6 {[%clk 0:01:49]} 12. exd5 {[%clk 0:02:15]}  Bxd5 {[%clk 0:01:49]} 13. Nxd5 {[%clk 0:02:15]}  Qxd5 {[%clk 0:01:50]} 14. Rc1 {[%clk 0:02:16]}  b5 {[%clk 0:01:42]} 15. b3 {[%clk 0:01:45]}  cxb3 {[%clk 0:01:24]} 16. Rc5 {[%clk 0:01:43]}  Qd6 {[%clk 0:01:20]} 17. axb3 {[%clk 0:01:39]}  a6 {[%clk 0:01:13]} 18. Qc2 {[%clk 0:01:37]}  Nd7 {[%clk 0:00:45]} 19. Rc6 {[%clk 0:01:36]}  Qb4 {[%clk 0:00:46]} 20. Rc7 {[%clk 0:01:18]}  Rad8 {[%clk 0:00:42]} 21. Qc6 {[%clk 0:01:14]}  Nb8 {[%clk 0:00:42]} 22. Qc2 {[%clk 0:01:02]}  Bxd4 {[%clk 0:00:39]} 23. Ng5 {[%clk 0:01:00]}  g6 {[%clk 0:00:39]} 24. Qe4 {[%clk 0:00:27]}  Qd6 {[%clk 0:00:30]} 25. Qh4 {[%clk 0:00:24]}  h5 {[%clk 0:00:30]} 26. Rc2 {[%clk 0:00:20]}  Bf6 {[%clk 0:00:30]} 27. f4 {[%clk 0:00:17]}  Rfe8 {[%clk 0:00:28]} 28. Kh1 {[%clk 0:00:16]}  Nc6 {[%clk 0:00:27]} 29. Bf3 {[%clk 0:00:07]}  Nd4 {[%clk 0:00:27]} 30. Rcf2 {[%clk 0:00:06]}  a5 {[%clk 0:00:20]} 31. Bxh5 {[%clk 0:00:04]}  Nf5 {[%clk 0:00:19]} 32. Qh3 {[%clk 0:00:04]}  Bxg5 {[%clk 0:00:16]} 33. fxg5 {[%clk 0:00:04]}  Re3 {[%clk 0:00:16]} 34. Bf3 {[%clk 0:00:04]}  Rxb3 {[%clk 0:00:15]} 35. Qg4 {[%clk 0:00:03]}  Qd4 {[%clk 0:00:14]} 36. Qh3 {[%clk 0:00:01]}  a4 {[%clk 0:00:14]} 37. Re2 {[%clk 0:00:01]}  a3 {[%clk 0:00:13]} 38. Rfe1 {[%clk 0:00:01]}  Kg7 {[%clk 0:00:11]} 0-1


[Site "https://www.chess.com"]